fUSD/lending_fUSD_20240912
["ID","MTS","AMOUNT","RATE_DAILY","PERIOD"]
[337784397,1726116637882,-281.93275368,0.00014679,2]
[337784398,1726116637892,-1645.72732365,0.000148,2]
[337784507,1726116639932,-615.25624087,0.000148,2]
[337784508,1726116639944,-739.01643548,0.000148,2]
[337784509,1726116639954,-21.09948177,0.000148,2]
[337784510,1726116639965,-399.0391935,0.000148,2]
[337784511,1726116639975,-2.67286002,0.00014811,2]
[337784512,1726116639986,-417.46581521,0.00014811,2]
[337784513,1726116639996,-420.13867523,0.00014822,2]
[337784515,1726116640009,-420.13867523,0.00014833,2]
[337784517,1726116640019,-420.13867523,0.00014844,2]
[337784519,1726116640028,-420.13867523,0.00014856,2]
[337784521,1726116640037,-158.22,0.0001486,2]
[337784523,1726116640048,-420.13867523,0.00014867,2]
[337784525,1726116640058,-420.13867523,0.00014878,2]
[337784526,1726116640067,-237.4731758,0.00014889,2]
[337784529,1726116640082,-182.66549943,0.00014889,2]
[337784531,1726116640092,-295.136,0.00014899,2]
[337784533,1726116640102,-27.46093977,0.000149,2]
[337784535,1726116640113,-122.53906023,0.000149,2]
[337784537,1726116640123,-420.13867523,0.000149,2]
[337784539,1726116640132,-153.65201141,0.000149,2]
[337784541,1726116640143,-55.73672362,0.000149,2]
[337784543,1726116640154,-431.39001,0.000149,2]
[337784554,1726116640262,-4078.54438042,0.000149,2]
[337784556,1726116640272,-353.30441506,0.000149,2]
[337784558,1726116640281,-157.8,0.00014913,2]
[337784559,1726116640290,-150.0,0.00014953,2]
[337784561,1726116640300,-150.0,0.00014957,2]
[337784563,1726116640310,-107194.155553,0.0001498,2]
[337784565,1726116640320,-386.78227157,0.00014989,2]
[337784567,1726116640329,-131015.079009,0.0001499,2]
[337784569,1726116640338,-47020.95117597,0.0001499,2]
[337784571,1726116640350,-289.59048333,0.0001499,2]
[337784573,1726116640361,-794.56642176,0.0001499,2]
[337784575,1726116640372,-5218.10068557,0.0001499,2]
[337784577,1726116640384,-3500.0,0.0001499,2]
[337784581,1726116640413,-3153.00204471,0.0001499,2]
[337784588,1726116640473,-964.35546878,0.0001499,2]
[337784590,1726116640485,-281.186742,0.0001499,2]
[337784592,1726116640496,-588.2445,0.0001499,2]
[337784594,1726116640507,-39212.85223734,0.0001499,2]
[337784596,1726116640519,-5515.95915573,0.0001499,2]
[337784598,1726116640530,-1846.11805681,0.0001499,2]
[337784600,1726116640539,-151.0,0.0001499,2]
[337784602,1726116640549,-151.0,0.0001499,2]
[337784604,1726116640558,-151.0,0.0001499,2]
[337784606,1726116640567,-151.0,0.0001499,2]
[337784608,1726116640577,-151.0,0.0001499,2]
[337784610,1726116640587,-200.0,0.0001499,2]
[337784612,1726116640596,-151.0,0.0001499,2]
[337784614,1726116640605,-151.0,0.0001499,2]
[337784616,1726116640615,-727.009325,0.0001499,2]
[337784618,1726116640624,-576.576569,0.0001499,2]
[337784619,1726116640633,-576.576569,0.0001499,2]
[337784621,1726116640642,-151.0,0.0001499,2]
[337784623,1726116640651,-63.88582671,0.0001499,2]
[337784625,1726116640662,-87.11417329,0.0001499,2]
[337784626,1726116640671,-233.743262,0.0001499,2]
[337784628,1726116640681,-151.0,0.0001499,2]
[337784630,1726116640690,-233.743262,0.0001499,2]
[337784632,1726116640699,-151.0,0.0001499,2]
[337784634,1726116640708,-151.0,0.0001499,2]
[337784636,1726116640718,-151.0,0.0001499,2]
[337784638,1726116640728,-151.0,0.0001499,2]
[337784640,1726116640738,-198.216265,0.0001499,2]
[337784642,1726116640747,-198.216265,0.0001499,2]
[337784644,1726116640757,-151.0,0.0001499,2]
[337784646,1726116640768,-224.314982,0.0001499,2]
[337784648,1726116640778,-2000.0,0.0001499,2]
[337784650,1726116640788,-224.314982,0.0001499,2]
[337784652,1726116640798,-200.0,0.0001499,2]
[337784654,1726116640808,-151.0,0.0001499,2]
[337784656,1726116640817,-260.290616,0.0001499,2]
[337784658,1726116640826,-151.0,0.0001499,2]
[337784660,1726116640835,-151.0,0.0001499,2]
[337784662,1726116640845,-151.0,0.0001499,2]
[337784664,1726116640854,-445.61953,0.0001499,2]
[337784666,1726116640865,-445.61953,0.0001499,2]
[337784668,1726116640874,-151.0,0.0001499,2]
[337784670,1726116640885,-835.145126,0.0001499,2]
[337784672,1726116640896,-835.145126,0.0001499,2]
[337784674,1726116640906,-151.0,0.0001499,2]
[337784676,1726116640915,-261.022219,0.0001499,2]
[337784677,1726116640925,-151.0,0.0001499,2]
[337784679,1726116640934,-261.022219,0.0001499,2]
[337784681,1726116640944,-151.0,0.0001499,2]
[337784683,1726116640953,-589.11377,0.0001499,2]
[337784685,1726116640962,-589.11377,0.0001499,2]
[337784687,1726116640971,-151.0,0.0001499,2]
[337784689,1726116640981,-151.0,0.0001499,2]
[337784691,1726116640990,-151.0,0.0001499,2]
[337784693,1726116640999,-151.0,0.0001499,2]
[337784695,1726116641011,-234.1963376,0.0001499,2]
[337784696,1726116641020,-234.1963376,0.0001499,2]
[337784698,1726116641030,-234.1963376,0.0001499,2]
[337784700,1726116641039,-234.1963376,0.0001499,2]
[337784702,1726116641050,-234.1963376,0.0001499,2]
[337784704,1726116641059,-151.0,0.0001499,2]
[337784706,1726116641068,-151.0,0.0001499,2]
[337784708,1726116641080,-483.14924,0.0001499,2]
[337784710,1726116641090,-483.14924,0.0001499,2]
[337784712,1726116641099,-151.0,0.0001499,2]
[337784714,1726116641109,-151.0,0.0001499,2]
[337784716,1726116641120,-151.0,0.0001499,2]
[337784718,1726116641130,-151.0,0.0001499,2]
[337784720,1726116641139,-18088.53231246,0.0001499,2]
[337784722,1726116641151,-518.3172111,0.0001499,2]
[337784730,1726116641212,-1600.65,0.0001499,2]
[337784732,1726116641225,-402.41737293,0.0001499,2]
[337784938,1726116643447,-490.45,0.0001499,2]
[337784940,1726116643458,-608.1292825,0.0001499,2]
[337784942,1726116643470,-382.29982491,0.0001499,2]
[337785009,1726116644389,-7832.58094494,0.0001499,2]
[337785012,1726116644409,-10617.27147713,0.0001499,2]
[337785014,1726116644421,-1578.62846982,0.0001499,2]
[337785098,1726116645884,-453.46218221,0.0001499,2]
[337785099,1726116645896,-6772.36392534,0.0001499,2]
[337785100,1726116645907,-22117.66736536,0.0001499,2]
[337785101,1726116645917,-104688.28787804,0.0001499,2]
[337785102,1726116645941,-585.71,0.0001499,2]
[337785103,1726116646017,-1753.85498398,0.0001499,2]
[337785104,1726116646083,-4919.07120143,0.0001499,2]
[337785105,1726116646097,-1185.57,0.0001499,2]
[337785106,1726116646108,-1034.05360558,0.0001499,2]
[337785107,1726116646120,-729.12371714,0.0001499,2]
[337785108,1726116646131,-939.883994,0.0001499,2]
[337785109,1726116646143,-740.40033588,0.0001499,2]
[337785110,1726116646154,-4056.86937231,0.0001499,2]
[337785111,1726116646165,-1919.57705919,0.0001499,2]
[337785112,1726116646176,-551.67107378,0.0001499,2]
[337785113,1726116646188,-448.56307496,0.0001499,2]
[337785114,1726116646302,-1228.54661117,0.0001499,2]
[337785115,1726116646315,-9769.14972056,0.0001499,2]
[337785117,1726117048137,-157.8,0.00012051,2]
[337785119,1726117523227,157.85,0.00010959,2]
[337785124,1726117573008,-157.8,0.00012018,2]
[337785125,1726117574477,650.0,0.00011164,2]
[337785126,1726117595797,178.36263179,0.00012,2]
[337785131,1726117668798,9754.44,0.00012,2]
[337785148,1726117812263,-2004.0,0.000126,2]
[337785154,1726117831951,-640.0,0.0001392,2]
[337785155,1726117831961,-250.0,0.0001393,2]
[337785156,1726117831970,-526.6,0.00013936,2]
[337785157,1726117831979,-777.44,0.00013944,2]
[337785158,1726117831989,-729.26,0.00013944,2]
[337785159,1726117831998,-141.98778418,0.00013952,2]
[337785160,1726117832040,-158.01221582,0.00013952,2]
[337785161,1726117832049,-560.59752187,0.00013953,2]
[337785162,1726117832060,-1516.47244228,0.00013953,2]
[337785163,1726117832071,-1472.97,0.00013953,2]
[337785164,1726117832180,-6358.48003585,0.00013953,2]
[337785165,1726117832190,-186.52,0.00013987,2]
[337785166,1726117832200,-360.0,0.0001404,2]
[337785167,1726117832208,-150.0,0.00014787,2]
[337785168,1726117832218,-560.08708911,0.000148,2]
[337785169,1726117832229,-2439.91291089,0.000148,2]
[337785170,1726117832238,-3706.19,0.00014804,2]
[337785171,1726117832248,-3706.9,0.00014811,2]
[337785172,1726117832258,-3777.25,0.00014823,2]
[337785173,1726117832268,-3000.0,0.0001484,2]
[337785174,1726117832278,-3707.98,0.00014845,2]
[337785175,1726117832288,-166.35410698,0.0001489,2]
[337785176,1726117832297,-166.35410695,0.00014893,2]
[337785177,1726117832307,-166.35410695,0.00014897,2]
[337785178,1726117832316,-236.109,0.000149,2]
[337785179,1726117832325,-166.35410695,0.000149,2]
[337785180,1726117832335,-1016.9476,0.00014904,2]
[337785181,1726117832344,-150.0,0.00014927,2]
[337785182,1726117832353,-150.0,0.0001498,2]
[337785183,1726117832362,-150.01,0.00014989,2]
[337785184,1726117832373,-825.02441979,0.00014989,2]
[337785185,1726117832385,-3713.68,0.0001499,2]
[337785186,1726117832394,-98551.8587515,0.0001499,2]
[337785187,1726117832403,-151.0,0.0001499,2]
[337785188,1726117832412,-151.0,0.0001499,2]
[337785189,1726117832422,-215.868274,0.0001499,2]
[337785190,1726117832431,-151.750041,0.0001499,2]
[337785191,1726117832440,-151.0,0.0001499,2]
[337785192,1726117832450,-151.0,0.0001499,2]
[337785193,1726117832459,-151.0,0.0001499,2]
[337785194,1726117832469,-155.196384,0.0001499,2]
[337785195,1726117832480,-155.196384,0.0001499,2]
[337785196,1726117832489,-155.196384,0.0001499,2]
[337785197,1726117832499,-155.196384,0.0001499,2]
[337785198,1726117832508,-151.0,0.0001499,2]
[337785199,1726117832517,-156.417804,0.0001499,2]
[337785200,1726117832527,-156.417804,0.0001499,2]
[337785201,1726117832538,-151.0,0.0001499,2]
[337785202,1726117832547,-2322.82,0.0001499,2]
[337785203,1726117832556,-200.0,0.0001499,2]
[337785204,1726117832566,-151.0,0.0001499,2]
[337785205,1726117832575,-151.0,0.0001499,2]
[337785206,1726117832586,-151.0,0.0001499,2]
[337785207,1726117832596,-151.0,0.0001499,2]
[337785208,1726117832605,-1003.063119,0.0001499,2]
[337785209,1726117832615,-151.0,0.0001499,2]
[337785210,1726117832625,-1003.063119,0.0001499,2]
[337785211,1726117832635,-151.0,0.0001499,2]
[337785212,1726117832645,-402.231437,0.0001499,2]
[337785213,1726117832655,-402.231437,0.0001499,2]
[337785214,1726117832664,-151.0,0.0001499,2]
[337785215,1726117832674,-2000.0,0.0001499,2]
[337785216,1726117832684,-151.0,0.0001499,2]
[337785217,1726117832694,-151.0,0.0001499,2]
[337785218,1726117832705,-200.0,0.0001499,2]
[337785219,1726117832715,-151.0,0.0001499,2]
[337785220,1726117832725,-201.883484,0.0001499,2]
[337785221,1726117832735,-201.883484,0.0001499,2]
[337785222,1726117832745,-151.0,0.0001499,2]
[337785223,1726117832755,-151.0,0.0001499,2]
[337785224,1726117832765,-151.0,0.0001499,2]
[337785225,1726117832775,-234.919997,0.0001499,2]
[337785226,1726117832787,-234.919997,0.0001499,2]
[337785227,1726117832796,-195.39907,0.0001499,2]
[337785228,1726117832806,-195.39907,0.0001499,2]
[337785229,1726117832815,-195.39907,0.0001499,2]
[337785230,1726117832824,-195.39907,0.0001499,2]
[337785231,1726117832833,-151.0,0.0001499,2]
[337785232,1726117832843,-195.39907,0.0001499,2]
[337785233,1726117832852,-195.39907,0.0001499,2]
[337785234,1726117832862,-869.527705,0.0001499,2]
[337785235,1726117832872,-869.527705,0.0001499,2]
[337785236,1726117832881,-151.0,0.0001499,2]
[337785237,1726117832891,-157.011133,0.0001499,2]
[337785238,1726117832900,-210.368936,0.0001499,2]
[337785239,1726117832909,-210.368936,0.0001499,2]
[337785240,1726117832917,-210.368936,0.0001499,2]
[337785241,1726117832927,-210.368936,0.0001499,2]
[337785242,1726117832937,-210.368936,0.0001499,2]
[337785243,1726117832948,-210.368936,0.0001499,2]
[337785244,1726117832958,-151.0,0.0001499,2]
[337785245,1726117832967,-151.0,0.0001499,2]
[337785246,1726117832976,-178.394638,0.0001499,2]
[337785247,1726117832985,-178.394638,0.0001499,2]
[337785248,1726117832994,-178.394638,0.0001499,2]
[337785249,1726117833003,-178.394638,0.0001499,2]
[337785250,1726117833012,-151.0,0.0001499,2]
[337785251,1726117833021,-151.0,0.0001499,2]
[337785252,1726117833030,-153.219304,0.0001499,2]
[337785253,1726117833041,-151.0,0.0001499,2]
[337785254,1726117833050,-151.0,0.0001499,2]
[337785255,1726117833059,-235.87404,0.0001499,2]
[337785256,1726117833068,-235.87404,0.0001499,2]
[337785257,1726117833077,-235.87404,0.0001499,2]
[337785258,1726117833086,-235.87404,0.0001499,2]
[337785259,1726117833096,-215.992897,0.0001499,2]
[337785260,1726117833105,-215.992897,0.0001499,2]
[337785261,1726117833123,-215.992897,0.0001499,2]
[337785262,1726117833141,-215.992897,0.0001499,2]
[337785263,1726117833158,-426.902322,0.0001499,2]
[337785264,1726117833177,-426.902322,0.0001499,2]
[337785265,1726117833198,-156.1308919,0.0001499,2]
[337785266,1726117833214,-156.1308919,0.0001499,2]
[337785267,1726117833232,-426.902322,0.0001499,2]
[337785268,1726117833247,-156.1308919,0.0001499,2]
[337785269,1726117833264,-156.1308919,0.0001499,2]
[337785270,1726117833282,-156.1308919,0.0001499,2]
[337785271,1726117833301,-426.902322,0.0001499,2]
[337785272,1726117833316,-690.658859,0.0001499,2]
[337785273,1726117833332,-690.658859,0.0001499,2]
[337785274,1726117833349,-266.357073,0.0001499,2]
[337785275,1726117833366,-266.357073,0.0001499,2]
[337785276,1726117833381,-266.357073,0.0001499,2]
[337785277,1726117833397,-266.357073,0.0001499,2]
[337785278,1726117833420,-690.658859,0.0001499,2]
[337785279,1726117833436,-223.252946,0.0001499,2]
[337785280,1726117833451,-690.658859,0.0001499,2]
[337785281,1726117833467,-178.28280675,0.0001499,2]
[337785282,1726117833514,-44.97013925,0.0001499,2]
[337785283,1726117833528,-223.252946,0.0001499,2]
[337785284,1726117833544,-223.252946,0.0001499,2]
[337785285,1726117833559,-151.0,0.0001499,2]
[337785286,1726117833574,-151.0,0.0001499,2]
[337785287,1726117833589,-151.0,0.0001499,2]
[337785288,1726117833604,-151.0,0.0001499,2]
[337785289,1726117833618,-151.0,0.0001499,2]
[337785290,1726117833633,-151.0,0.0001499,2]
[337785291,1726117833648,-151.0,0.0001499,2]
[337785292,1726117833662,-151.0,0.0001499,2]
[337785293,1726117833677,-217.771223,0.0001499,2]
[337785294,1726117833692,-217.771223,0.0001499,2]
[337785295,1726117833706,-217.771223,0.0001499,2]
[337785296,1726117833721,-217.771223,0.0001499,2]
[337785297,1726117833735,-151.0,0.0001499,2]
[337785298,1726117833750,-151.0,0.0001499,2]
[337785299,1726117833764,-151.0,0.0001499,2]
[337785300,1726117833780,-151.0,0.0001499,2]
[337785301,1726117833795,-14.93750788,0.0001499,2]
[337785302,1726117833813,-219.70985012,0.0001499,2]
[337785303,1726117833829,-234.647358,0.0001499,2]
[337785304,1726117833844,-1.97707193,0.0001499,2]
[337785335,1726117838520,-232.67028607,0.0001499,2]
[337785338,1726117838530,-234.647358,0.0001499,2]
[337785340,1726117838540,-430.26713304,0.0001499,2]
[337785342,1726117838551,-1545.07354576,0.0001499,2]
[337785344,1726117838560,-1211.29167123,0.0001499,2]
[337785346,1726117838571,-442.25,0.0001499,2]
[337785350,1726117838604,-26.86221827,0.0001499,2]
[337785352,1726117838613,-744.4053605,0.0001499,2]
[337785355,1726117838629,-641.0617398,0.0001499,2]
[337785357,1726117838638,-1058.9382602,0.0001499,2]
[337785360,1726117838653,-31.5920509,0.0001499,2]
[337785362,1726117838663,-795.5935218,0.0001499,2]
[337785364,1726117838673,-1847.035476,0.0001499,2]
[337785366,1726117838684,-1530.60036617,0.0001499,2]
[337785368,1726117838697,-316.43510983,0.0001499,2]
[337785370,1726117838706,-151.0,0.0001499,2]
[337785371,1726117838715,-178.64492183,0.0001499,2]
[337785374,1726117838731,-593.2989079,0.0001499,2]
[337785377,1726117838746,-1075.09164627,0.0001499,2]
[337785379,1726117838756,-151.0,0.0001499,2]
[337785380,1726117838765,-1847.035476,0.0001499,2]
[337785382,1726117838775,-401.057577,0.0001499,2]
[337785385,1726117838786,-151.0,0.0001499,2]
[337785387,1726117838798,-151.0,0.0001499,2]
[337785388,1726117838807,-401.057577,0.0001499,2]
[337785390,1726117838816,-401.057577,0.0001499,2]
[337785392,1726117838825,-151.0,0.0001499,2]
[337785394,1726117838835,-401.057577,0.0001499,2]
[337785396,1726117838845,-151.0,0.0001499,2]
[337785398,1726117838857,-151.0,0.0001499,2]
[337785401,1726117838868,-1893.6280591,0.0001499,2]
[337785403,1726117838879,-1610.8917262,0.0001499,2]
[337785405,1726117838889,-1328.1553933,0.0001499,2]
[337785407,1726117838902,-1045.4190604,0.0001499,2]
[337785408,1726117838912,-762.6827275,0.0001499,2]
[337785410,1726117838921,-695.185252,0.0001499,2]
[337785412,1726117838931,-695.185252,0.0001499,2]
[337785414,1726117838942,-695.185252,0.0001499,2]
[337785416,1726117838953,-294.04899,0.0001499,2]
[337785418,1726117838963,-294.04899,0.0001499,2]
[337785420,1726117838974,-695.185252,0.0001499,2]
[337785422,1726117838983,-10000.0,0.0001499,2]
[337785424,1726117838994,-695.185252,0.0001499,2]
[337785426,1726117839004,-10000.0,0.0001499,2]
[337785428,1726117839015,-269556.3438959,0.0001499,2]
[337785430,1726117839027,-647.74621271,0.0001499,2]
[337785457,1726117839322,-1305.81,0.0001499,2]
[337785462,1726117839364,-289.76883279,0.0001499,2]
[337785775,1726117843045,-152.41198582,0.00014989,2]
[337785777,1726117843055,-459.35015272,0.00014989,2]
[337785780,1726117843067,-228.1701971,0.00014989,2]
[337785782,1726117843087,-9235.13904548,0.0001499,2]
[337785786,1726117843124,-447.3484677,0.0001499,2]
[337785877,1726117844030,-371.80700001,0.0001499,2]
[337785880,1726117844044,-2826.0,0.0001499,2]
[337786058,1726118144155,231.2,0.00011944,2]
[337786062,1726118736137,219.64,0.00011931,2]
[337786065,1726118792848,-150.0,0.00013488,2]
[337786066,1726118792871,-150.0,0.00013488,2]
[337786067,1726118792897,-575.16,0.00013848,2]
[337786068,1726118814197,-250.0,0.00013848,2]
[337786069,1726118819208,-50.0,0.00013848,2]
[337786070,1726118819231,-200.0,0.00013854,2]
[337786075,1726118834948,-50.0,0.00013854,2]
[337786076,1726118834971,-250.0,0.00013857,2]
[337786082,1726118836239,-50.0,0.00013857,2]
[337786093,1726118926073,-18168.942818,0.00013,2]
[337786122,1726119032063,-5741.11512797,0.00013,2]
[337786123,1726119032073,-300.0,0.00013842,2]
[337786124,1726119032084,-23900.0,0.00013843,2]
[337786125,1726119032093,-743.51,0.00013844,2]
[337786126,1726119032104,-607.45,0.00013849,2]
[337786127,1726119032114,-250.78,0.00013866,2]
[337786128,1726119032123,-186.52,0.00013866,2]
[337786129,1726119032134,-1000.0,0.00013867,2]
[337786130,1726119032144,-250.0,0.00013867,2]
[337786131,1726119032154,-8848.39,0.00013869,2]
[337786132,1726119032164,-150.0,0.00013987,2]
[337786133,1726119032175,-7210.44600727,0.00014059,2]
[337786134,1726119032184,-507.37,0.00014059,2]
[337786135,1726119032194,-219.64,0.00014195,2]
[337786136,1726119032204,-150.0,0.00014487,2]
[337786137,1726119032215,-18995.97,0.000145,2]
[337786138,1726119032224,-152.0,0.00014699,3]
[337786139,1726119032234,-150.0,0.00014731,2]
[337786140,1726119032244,-150.0,0.00014743,2]
[337786141,1726119032254,-150.0,0.0001475,2]
[337786142,1726119032264,-150.0,0.00014751,2]
[337786143,1726119032273,-150.0,0.00014752,2]
[337786144,1726119032283,-150.0,0.00014756,2]
[337786145,1726119032292,-150.0,0.00014758,2]
[337786146,1726119032302,-150.0,0.00014766,2]
[337786147,1726119032311,-150.0,0.0001477,2]
[337786148,1726119032321,-150.0,0.00014793,2]
[337786149,1726119032331,-3497.970885,0.000148,2]
[337786150,1726119032340,-3000.0,0.000148,2]
[337786151,1726119032349,-150.0,0.000148,2]
[337786152,1726119032358,-150.0,0.00014803,2]
[337786153,1726119032368,-253.87769404,0.00014804,2]
[337786154,1726119032377,-150.0,0.00014808,2]
[337786155,1726119032387,-228.35410344,0.00014812,2]
[337786156,1726119032396,-150.0,0.00014813,2]
[337786157,1726119032405,-150.0,0.00014816,2]
[337786159,1726119032414,-150.0,0.00014825,2]
[337786161,1726119032423,-150.0,0.0001484,2]
[337786162,1726119032432,-3000.0,0.0001484,2]
[337786163,1726119032442,-150.0,0.00014846,2]
[337786164,1726119032451,-1965.37070759,0.0001485,2]
[337786165,1726119032460,-150.0,0.00014853,2]
[337786166,1726119032470,-150.0,0.00014854,2]
[337786167,1726119032479,-150.0,0.00014868,2]
[337786168,1726119032488,-150.0,0.00014882,2]
[337786169,1726119032498,-150.0,0.00014883,2]
[337786170,1726119032508,-334.62206066,0.00014886,2]
[337786171,1726119032517,-150.0,0.00014889,2]
[337786172,1726119032527,-185.71939874,0.0001489,2]
[337786173,1726119032536,-7109.2575,0.0001489,2]
[337786174,1726119032545,-1290.4056,0.0001489,2]
[337786175,1726119032555,-611.7033,0.0001489,2]
[337786176,1726119032565,-4844.4414,0.0001489,2]
[337786177,1726119032575,-39477.02086173,0.0001489,2]
[337786196,1726119038538,-2172.07863827,0.0001489,2]
[337786198,1726119038548,-150.0,0.00014896,2]
[337786200,1726119038558,-563.861,0.000149,2]
[337786202,1726119038567,-2379.91505313,0.000149,2]
[337786204,1726119038577,-170.99283823,0.000149,2]
[337786206,1726119038586,-150.0,0.00014901,2]
[337786208,1726119038595,-188.887,0.00014902,2]
[337786210,1726119038605,-150.0,0.00014915,2]
[337786212,1726119038615,-150.0,0.0001492,2]
[337786214,1726119038624,-150.0,0.00014923,2]
[337786216,1726119038634,-150.0,0.00014924,2]
[337786218,1726119038643,-150.0,0.00014938,2]
[337786220,1726119038653,-150.0,0.00014949,2]
[337786222,1726119038662,-150.0,0.00014956,2]
[337786224,1726119038671,-150.0,0.00014957,2]
[337786225,1726119038681,-150.0,0.00014966,2]
[337786227,1726119038690,-150.0,0.00014968,2]
[337786229,1726119038700,-169.99505324,0.00014973,2]
[337786231,1726119038709,-545.62357753,0.00014973,2]
[337786233,1726119038720,-150.0,0.00014977,2]
[337786235,1726119038730,-150.0,0.00014977,2]
[337786237,1726119038739,-500.0,0.00014979,2]
[337786239,1726119038748,-500.0,0.00014979,2]
[337786241,1726119038758,-500.0,0.00014979,2]
[337786243,1726119038768,-253.93254471,0.00014979,2]
[337786245,1726119038778,-500.0,0.00014979,2]
[337786247,1726119038787,-500.0,0.00014979,2]
[337786249,1726119038796,-500.0,0.00014979,2]
[337786251,1726119038805,-500.0,0.00014979,2]
[337786253,1726119038815,-500.0,0.00014979,2]
[337786255,1726119038825,-500.0,0.00014979,2]
[337786256,1726119038834,-636.16976132,0.00014979,2]
[337786258,1726119038844,-500.0,0.00014979,2]
[337786261,1726119038854,-500.0,0.00014979,2]
[337786263,1726119038864,-500.0,0.00014979,2]
[337786264,1726119038878,-468.85443565,0.00014979,2]
[337786266,1726119038888,-500.0,0.00014979,2]
[337786268,1726119038898,-500.0,0.00014979,2]
[337786270,1726119038907,-5382.96728645,0.0001498,2]
[337786273,1726119038920,-28044.33900504,0.0001498,2]
[337786275,1726119038935,-541.59242242,0.0001498,2]
[337786277,1726119038947,-3861.57904239,0.0001498,2]
[337786279,1726119038958,-307.07755376,0.0001498,2]
[337786282,1726119038981,-2489.57862817,0.0001498,2]
[337786284,1726119038993,-15488.86235517,0.0001498,2]
[337786286,1726119039003,-679.0,0.0001498,4]
[337786288,1726119039014,-1000.0,0.0001498,3]
[337786290,1726119039023,-1000.0,0.0001498,3]
[337786292,1726119039033,-1000.0,0.0001498,3]
[337786294,1726119039043,-1000.0,0.0001498,4]
[337786296,1726119039052,-1000.0,0.0001498,3]
[337786298,1726119039062,-499.0,0.0001498,4]
[337786300,1726119039072,-1002.0,0.0001498,3]
[337786302,1726119039082,-1000.0,0.0001498,3]
[337786304,1726119039091,-150.0,0.0001498,2]
[337786305,1726119039101,-83370.15336778,0.0001498,2]
[337786308,1726119039112,-709.08266212,0.0001498,2]
[337786310,1726119039124,-6459.64525156,0.0001498,2]
[337786313,1726119039146,-1043.64469996,0.0001498,2]
[337786315,1726119039159,-2234.28306925,0.0001498,2]
[337786317,1726119039170,-515.28705452,0.0001498,2]
[337786319,1726119039181,-1134.70787623,0.0001498,2]
[337786321,1726119039193,-6549.14840274,0.0001498,2]
[337786324,1726119039205,-23290.25273643,0.0001498,2]
[337786326,1726119039217,-4183.97458834,0.0001498,2]
[337786329,1726119039243,-575.0,0.0001498,2]
[337786332,1726119039254,-6348.92474798,0.0001498,2]
[337786346,1726119039391,-766.14992009,0.0001498,2]
[337786348,1726119039403,-4745.94753637,0.0001498,2]
[337786350,1726119039414,-10057.58,0.0001498,2]
[337786352,1726119039425,-1167.56978197,0.0001498,2]
[337786354,1726119039437,-3955.01642289,0.0001498,2]
[337786357,1726119039459,-19137.89899619,0.0001498,2]
[337786499,1726119040701,-3593.08737091,0.0001498,2]
[337786502,1726119040714,-322.85018007,0.0001498,2]
[337786504,1726119040727,-347.78074878,0.0001498,2]
[337786506,1726119040738,-503.4787228,0.0001498,2]
[337786508,1726119040750,-6174.05112222,0.0001498,2]
[337786514,1726119040794,-310.14703584,0.0001498,2]
[337786515,1726119040806,-307.46014093,0.0001498,2]
[337786517,1726119040817,-11464.75808829,0.0001498,2]
[337786520,1726119040837,-540.18000005,0.0001498,2]
[337786522,1726119040848,-1079.800005,0.0001498,2]
[337786524,1726119040864,-707.29759084,0.0001498,2]
[337786527,1726119040879,-5520.4318433,0.0001498,2]
[337786529,1726119040891,-416.47603396,0.0001498,2]
[337786531,1726119040902,-12142.85840759,0.0001498,2]